bitfinex-derivatives/quotes_ETHF0:USTF0_20220108
["timestamp","ask_amount","ask_price","bid_price","bid_amount"]
[1641682079463,0.66197,3132.0,3131.8,1.31050876]
[1641682079663,8.29268983,3132.2,3131.8,1.31050876]
[1641682080660,8.29268983,3132.2,3131.8,0.5098836]
[1641682080661,1.56717082,3132.1,3131.8,0.5098836]
[1641682081762,1.56717082,3132.1,3131.5,0.5098836]
[1641682081960,0.489963,3132.0,3131.5,0.5098836]
[1641682082363,1.5,3131.8,3131.5,0.5098836]
[1641682082562,0.489963,3131.7,3131.5,0.5098836]
[1641682084162,1.90723185,3132.2,3131.5,0.5098836]
[1641682084368,0.489963,3132.1,3131.5,0.5098836]
[1641682084770,1.5,3131.9,3131.5,0.5098836]
[1641682084973,0.44815,3131.5,3131.1,3.31529876]
[1641682085271,2.00479,3131.7,3131.1,1.31050876]
[1641682085470,0.489963,3131.6,3131.1,1.31050876]
[1641682085670,5.599498,3131.6,3131.1,1.31050876]
[1641682086070,5.599498,3131.6,3130.9,1.31050876]
[1641682086469,1.5,3131.2,3130.9,1.31050876]
[1641682086670,1.04490834,3131.1,3130.9,1.31050876]
[1641682086872,6.64497734,3131.1,3130.9,1.31050876]
[1641682087070,1.53487134,3131.1,3130.8,1.31050876]
[1641682088571,1.53487134,3131.1,3130.7,1.31050876]
[1641682090177,1.5,3130.9,3130.7,1.31050876]
[1641682090374,0.489963,3130.8,3130.7,1.31050876]
[1641682091679,0.489963,3130.8,3130.6,3.31529876]
[1641682092881,0.489963,3130.8,3130.7,1.31050876]
[1641682094782,3.15450378,3131.3,3130.7,1.31050876]
[1641682094981,1.5,3130.9,3130.7,1.31050876]
[1641682095184,6.81817224,3130.9,3130.7,1.31050876]
[1641682095482,3.15450378,3131.3,3130.8,0.66197]
[1641682095683,1.1836,3131.6,3130.8,2.25843989]
[1641682096483,1.1836,3131.6,3131.1,1.31050876]
[1641682096882,2.2065,3131.6,3131.1,1.97247876]
[1641682097083,0.7065,3131.6,3131.2,2.00479]
[1641682097584,0.7065,3131.6,3131.2,2.66676]
[1641682097786,0.7065,3131.6,3131.2,3.97726876]
[1641682098384,5.109535,3131.5,3131.2,3.97726876]
[1641682098585,0.7065,3131.6,3131.2,3.97726876]
[1641682098787,0.7065,3131.6,3131.4,1.31050876]
[1641682099386,5.109372,3131.5,3131.4,1.31050876]
[1641682099785,5.109372,3131.5,3131.2,4.23903926]
[1641682099985,5.109372,3131.5,3131.2,2.66676]
[1641682100187,0.7065,3131.6,3131.2,2.66676]
[1641682100986,5.109535,3131.5,3131.2,2.66676]
[1641682101788,6.609535,3131.5,3131.2,2.00479]
[1641682101989,5.109535,3131.5,3131.2,2.00479]
[1641682102387,3.48527242,3131.7,3131.2,2.00479]
[1641682102388,5.109617,3131.6,3131.2,2.00479]
[1641682102588,5.109617,3131.4,3131.2,2.00479]
[1641682102990,1.5,3131.5,3131.2,2.00479]
[1641682103188,1.5,3131.3,3131.2,2.00479]
[1641682103390,2.67853982,3131.3,3131.0,1.31050876]
[1641682103591,1.5,3131.1,3131.0,1.31050876]
[1641682103990,6.610106,3131.1,3131.0,1.31050876]
[1641682104391,6.610106,3131.1,3130.8,1.31050876]
[1641682105393,6.610106,3131.1,3130.6,3.57706926]
[1641682105394,6.610106,3131.1,3130.9,1.82034486]
[1641682106092,5.110106,3131.1,3130.9,1.82034486]
[1641682106492,6.610188,3131.2,3131.0,0.5098361]
[1641682106794,1.5,3131.2,3131.0,0.5098361]
[1641682106993,5.110025,3131.1,3131.0,0.5098361]
[1641682107393,6.609943,3131.2,3131.0,1.82034486]
[1641682107594,5.110106,3131.1,3131.0,1.82034486]
[1641682107995,5.109943,3131.2,3131.0,1.82034486]
[1641682108199,5.110106,3131.1,3131.0,1.82034486]
[1641682108496,5.38218844,3131.3,3131.0,0.5098361]
[1641682108497,5.110025,3131.2,3131.0,0.5098361]
[1641682108697,5.110106,3131.1,3131.0,0.5098361]
[1641682109102,1.5,3131.1,3131.0,0.5098361]
[1641682109298,6.610106,3131.1,3131.0,0.5098361]
[1641682109499,1.5,3131.1,3131.0,1.82034486]
[1641682109901,6.610106,3131.1,3131.0,1.82034486]
[1641682110198,5.110106,3131.1,3131.0,1.82034486]
[1641682110502,4.43481293,3131.1,3131.0,0.5098361]
[1641682110705,4.43481293,3131.1,3130.7,1.57227926]
[1641682110706,5.67547433,3130.9,3130.7,1.57227926]
[1641682110899,1.5,3131.1,3130.7,1.57227926]
[1641682111100,1.5,3131.1,3130.8,1.57227926]
[1641682111506,5.38218844,3131.3,3130.8,1.57227926]
[1641682111803,1.5,3131.1,3130.8,1.57227926]
[1641682112003,1.5,3131.1,3130.6,2.00479]
[1641682112004,1.5,3131.1,3130.7,1.57227926]
[1641682113503,4.0,3131.0,3130.7,1.57227926]
[1641682114303,4.0,3130.9,3130.7,1.57227926]
[1641682114504,4.0,3130.9,3130.3,2.00479]
[1641682114505,9.19945333,3130.7,3130.1,3.39885408]
[1641682114704,5.5,3130.3,3129.8,3.58967044]
[1641682114904,1.5,3130.1,3128.4,4.89500515]
[1641682115107,2.00479,3129.4,3129.3,3.52800412]
[1641682115304,3.50479,3129.4,3129.3,3.52800412]
[1641682115507,4.31096335,3129.4,3129.3,3.52800412]
[1641682115707,4.31096335,3129.4,3128.4,4.89500515]
[1641682115909,5.5,3129.1,3128.4,4.89500515]
[1641682116309,4.0,3128.9,3128.4,4.89500515]
[1641682116506,1.5,3128.9,3128.4,4.89500515]
[1641682116708,10.613699,3128.9,3128.4,4.89500515]
[1641682116909,10.613699,3128.9,3128.0,0.9351]
[1641682117107,2.00479,3128.4,3128.0,0.9351]
[1641682117507,1.36188145,3128.3,3128.0,0.9351]
[1641682117909,0.46463915,3128.4,3128.0,0.9351]
[1641682118311,4.0,3128.2,3128.0,0.9351]
[1641682118510,4.0,3128.2,3127.7,2.00479]
[1641682118709,7.67254536,3128.1,3127.7,2.00479]
[1641682119110,12.78771636,3128.1,3127.7,2.00479]
[1641682119308,4.0,3128.0,3127.7,2.00479]
[1641682119509,1.03734924,3127.9,3127.7,2.00479]
[1641682119709,1.03734924,3127.9,3127.3,2.00479]
[1641682119909,1.03734924,3127.9,3127.3,2.66676]
[1641682120909,1.03734924,3127.9,3127.3,0.66197]
[1641682121111,1.5,3127.7,3127.3,0.66197]
[1641682121310,1.5,3127.7,3127.0,3.59678077]
[1641682121311,7.49313911,3127.9,3127.2,2.00479]
[1641682121913,5.115825,3127.8,3127.2,2.00479]
[1641682122114,5.115825,3127.8,3127.3,0.66197]
[1641682122313,7.49313911,3127.9,3127.3,0.66197]
[1641682122515,7.49313911,3127.9,3127.7,1.3060678]
[1641682122715,5.5,3127.8,3127.7,1.3060678]
[1641682123016,6.615416,3127.8,3127.7,1.3060678]
[1641682123216,12.7002057,3127.8,3127.7,1.3060678]
[1641682123617,12.7002057,3127.8,3127.6,1.3060678]
[1641682124815,11.2002057,3127.8,3127.3,1.3060678]
[1641682125018,1.5,3127.4,3127.0,1.56745439]
[1641682125314,1.5,3127.4,3126.8,3.9638917]
[1641682125315,3.51617664,3127.0,3126.8,1.9591017]
[1641682125820,3.21667362,3126.7,3126.6,1.97093561]
[1641682126020,1.68265308,3126.7,3126.4,5.35887801]
[1641682126223,1.68265308,3126.7,3126.6,0.640787]
[1641682126421,0.6433,3126.7,3126.4,5.35887801]
[1641682127120,2.84957388,3126.6,3126.4,3.40150689]
[1641682127320,2.00479,3126.5,3126.4,0.68041267]
[1641682127520,2.00479,3126.5,3125.7,2.00479]
[1641682127720,4.0,3126.3,3125.7,2.00479]
[1641682128121,5.118362,3126.2,3125.7,2.00479]
[1641682128720,5.118362,3126.2,3125.3,2.00479]
[1641682128923,2.2143154,3126.2,3125.0,1.59941397]
[1641682129122,4.0,3125.7,3125.0,1.59941397]
[1641682129321,4.0,3125.7,3125.1,2.66676]
[1641682130021,4.0,3125.7,3125.1,2.00479]
[1641682130222,4.0,3125.7,3125.1,0.66197]
[1641682130424,5.119344,3125.6,3125.1,0.66197]
[1641682130822,9.119344,3125.6,3125.1,0.66197]
[1641682131023,9.119344,3125.6,3124.9,3.40150689]
[1641682131226,2.00479,3125.3,3124.9,3.40150689]
[1641682131426,2.00479,3125.3,3125.2,0.51058385]
[1641682131624,5.11959,3125.5,3125.2,0.51058385]
[1641682131824,5.11959,3125.3,3125.2,0.51058385]
[1641682132025,5.119426,3125.5,3125.2,0.51058385]
[1641682132427,7.06296495,3125.6,3125.0,0.51058385]
[1641682132428,5.11959,3125.3,3125.0,0.51058385]
[1641682132628,0.58073158,3125.5,3125.0,0.51058385]
[1641682132828,5.119754,3125.2,3125.0,0.51058385]
[1641682133127,1.00406123,3125.4,3125.1,1.41680393]
[1641682133328,1.00406123,3125.4,3125.3,0.75483393]
[1641682136029,1.00406123,3125.4,3124.8,2.75962393]
[1641682136231,3.62042772,3125.2,3124.8,3.307547]
[1641682137034,3.62042772,3125.2,3125.1,0.75483393]
[1641682137231,3.62042772,3125.2,3125.1,1.41680393]
[1641682137430,1.00406123,3125.4,3125.1,1.41680393]
[1641682137630,2.31779888,3125.6,3125.1,0.66197]
[1641682137830,2.31779888,3125.6,3125.5,0.75483393]
[1641682138934,2.31779888,3125.6,3125.5,1.39562093]
[1641682139231,2.31779888,3125.6,3125.5,0.66197]
[1641682139431,0.05095005,3125.7,3125.5,0.66197]
[1641682139635,0.05095005,3125.7,3125.6,0.75483393]
[1641682140232,34.11571868,3125.9,3125.6,0.75483393]
[1641682140433,34.11571868,3125.9,3125.5,0.66197]
[1641682141032,34.11571868,3125.9,3125.5,1.41680393]
[1641682141431,31.93714658,3125.9,3125.5,1.41680393]
[1641682143237,31.93714658,3125.9,3125.5,1.302757]
[1641682143435,31.93714658,3125.9,3125.8,0.75483393]
[1641682143638,32.14331258,3125.9,3125.4,4.00958]
[1641682144638,1.15179646,3125.6,3125.4,4.00958]
[1641682144839,1.35300672,3125.5,3125.4,4.00958]
[1641682145438,1.55917272,3125.5,3125.4,4.00958]
[1641682146438,31.93714658,3125.9,3125.4,4.00958]
[1641682147939,1.20215806,3125.8,3124.5,1.5]
[1641682148339,29.50821075,3125.9,3124.5,1.5]
[1641682149338,29.50821075,3125.9,3125.2,2.00479]
[1641682149541,1.38540306,3125.8,3125.2,2.00479]
[1641682149740,1.38540306,3125.8,3125.3,0.66197]
[1641682150341,27.9885272,3125.9,3125.3,0.66197]
[1641682151342,27.9885272,3125.9,3125.7,2.00479]
[1641682153543,1.5,3125.8,3125.2,2.645577]
[1641682153743,1.5,3125.8,3125.2,2.00479]
[1641682154042,5.11918,3125.7,3125.2,2.00479]
[1641682154543,5.119262,3125.8,3125.2,2.00479]
[1641682154848,5.119262,3125.6,3125.2,2.00479]
[1641682155243,5.11918,3125.8,3125.2,2.00479]
[1641682155444,9.11918,3125.8,3125.2,2.00479]
[1641682155643,1.5,3125.7,3125.2,2.00479]
[1641682155843,1.5,3125.7,3125.2,0.85284402]
[1641682156043,5.119262,3125.6,3125.2,0.85284402]
[1641682156442,9.119262,3125.6,3125.2,0.85284402]
[1641682156644,5.119262,3125.6,3125.2,0.85284402]
[1641682156843,2.94033114,3125.8,3125.2,1.49363102]
[1641682157043,2.00479,3126.0,3125.2,1.49363102]
[1641682157243,2.00479,3126.0,3125.3,0.66197]
[1641682160746,1.5,3125.7,3124.9,2.00479]
[1641682161147,5.119508,3125.6,3124.9,2.00479]
[1641682161346,2.00479,3125.5,3124.9,2.00479]
[1641682161645,1.28744466,3125.4,3124.9,2.645577]
[1641682161845,1.5,3125.0,3124.5,2.00479]
[1641682162145,6.40711666,3125.4,3123.7,71.43266912]
[1641682162146,10.27247321,3124.9,3123.7,71.43266912]
[1641682162345,10.27247321,3124.9,3123.7,1.60006912]
[1641682162549,5.15206421,3124.9,3123.7,1.60006912]
[1641682162747,5.121147,3124.8,3123.7,1.60006912]
[1641682162948,1.15220873,3124.5,3123.7,1.60006912]
[1641682163349,3.15699873,3124.5,3123.8,2.00479]
[1641682163847,0.80822549,3124.4,3123.8,2.00479]
[1641682164049,0.80822549,3124.4,3123.9,0.640787]
[1641682164253,0.80822549,3124.4,3123.8,2.00479]
[1641682164451,1.15251148,3123.7,3121.7,3.26556546]
[1641682164650,1.15251148,3123.7,3123.1,0.66197]
[1641682165056,1.1526181,3123.4,3122.8,2.7998636]
[1641682165251,1.1526181,3123.4,3122.9,0.66197]
[1641682165451,1.1526181,3123.4,3123.3,2.00479]
[1641682166852,2.00479,3124.1,3123.3,2.00479]
[1641682167555,5.12213,3124.0,3123.3,2.00479]
[1641682167754,0.91436829,3123.9,3123.4,1.79374047]
[1641682167953,0.91436829,3123.9,3123.3,2.00479]
[1641682168153,5.122212,3123.8,3123.3,2.00479]
[1641682168355,5.122212,3123.8,3123.1,2.00479]
[1641682168654,1.15257477,3123.5,3123.1,2.00479]
[1641682169054,5.122786,3123.4,3123.1,2.00479]
[1641682169853,1.38816454,3123.3,3123.1,2.00479]
[1641682170057,2.34676454,3123.3,3123.1,2.00479]
[1641682170255,5.12295,3123.2,3123.1,2.00479]
[1641682170456,5.12295,3123.2,3122.6,2.00479]
[1641682170656,1.5,3123.0,3122.0,0.9173]
[1641682171057,9.124099,3122.9,3122.0,0.9173]
[1641682171260,1.15283889,3122.8,3122.0,0.9173]
[1641682171459,2.00479,3122.1,3122.0,0.9173]
[1641682171662,0.2358295,3122.0,3121.3,3.57138807]
[1641682171959,7.736427,3122.1,3121.3,3.57138807]
[1641682172159,5.12533,3121.9,3121.3,3.57138807]
[1641682172362,4.0,3121.9,3121.5,0.5028636]
[1641682172566,1.5,3121.8,3121.0,2.00479]
[1641682172761,5.91010342,3121.8,3120.9,0.0128636]
[1641682173561,2.00479,3121.3,3120.7,1.56659807]
[1641682173762,2.81189,3121.3,3120.7,1.56659807]
[1641682173965,4.31189,3121.3,3120.5,0.68155754]
[1641682174164,0.0801,3121.2,3120.5,0.68155754]
[1641682174363,1.5,3121.1,3120.5,0.68155754]
[1641682174563,5.126726,3121.2,3120.5,0.68155754]
[1641682174765,0.93813838,3121.1,3120.5,0.68155754]
[1641682174964,4.0,3121.0,3120.5,0.45975754]
[1641682175165,0.0801,3120.9,3120.5,0.23795754]
[1641682175364,5.20699,3121.0,3120.5,0.23795754]
[1641682175566,2.00479,3120.7,3120.5,0.23795754]
[1641682175864,5.127219,3120.6,3120.3,0.66197]
[1641682176064,6.024119,3120.6,3120.3,0.66197]
[1641682176264,0.8969,3120.6,3120.3,0.66197]
[1641682176464,5.127465,3120.5,3120.3,0.66197]
[1641682176865,3.22217521,3120.5,3120.3,0.66197]
[1641682177267,3.22217521,3120.5,3119.9,2.00479]
[1641682177465,3.22217521,3120.5,3119.9,2.66676]
[1641682177965,3.22217521,3120.5,3120.0,1.5]
[1641682178166,3.22217521,3120.5,3120.1,0.66197]
[1641682182476,3.22217521,3120.5,3119.9,2.00479]
[1641682182679,3.22217521,3120.5,3120.0,0.66197]
[1641682183280,3.22217521,3120.5,3119.9,2.00479]
[1641682184379,3.22217521,3120.5,3119.9,2.66676]
[1641682185381,1.15375748,3120.3,3119.9,2.66676]
[1641682185779,1.15375748,3120.3,3119.9,2.00479]
[1641682186382,0.9255,3120.3,3119.9,2.00479]
[1641682187082,1.5,3120.8,3120.5,0.91225395]
[1641682187280,1.5,3120.8,3119.9,2.00479]
[1641682187482,2.43613624,3120.8,3119.9,2.00479]
[1641682187682,5.127629,3120.7,3119.9,2.00479]
[1641682188383,5.127629,3120.7,3120.0,0.66197]
[1641682189683,2.94567322,3120.7,3120.1,0.640787]
[1641682190383,0.93613624,3120.8,3120.2,0.66197]
[1641682190983,5.127383,3120.7,3120.2,0.66197]
[1641682191383,0.93613624,3120.8,3120.2,0.66197]
[1641682191584,1.98483799,3120.4,3120.2,0.66197]
[1641682191883,2.80683799,3120.4,3119.9,2.00479]
[1641682192283,2.80683799,3120.4,3120.0,0.640787]
[1641682192483,1.18932679,3120.3,3120.0,0.640787]
[1641682193883,1.18932679,3120.3,3119.9,2.00479]
[1641682195089,1.18932679,3120.3,3119.9,2.645577]
[1641682195488,1.18932679,3120.3,3120.0,0.66197]
[1641682195690,1.98095318,3119.8,3118.9,34.1162]
[1641682195890,3.48095318,3119.8,3118.5,1.56659807]
[1641682196089,1.98095318,3119.8,3118.7,1.31960218]
[1641682196288,3.47190846,3120.2,3118.7,1.31960218]
[1641682196489,1.60290832,3119.9,3118.7,1.31960218]
[1641682197491,1.60290832,3119.9,3118.8,0.51150745]
[1641682197694,0.58858972,3119.8,3118.8,2.51629745]
[1641682197892,4.0,3119.7,3118.8,2.51629745]
[1641682198098,4.7254,3119.7,3118.8,2.51629745]
[1641682198294,9.854755,3119.7,3118.8,2.51629745]
[1641682198495,1.60317814,3119.4,3118.8,2.00079]
[1641682198693,0.96803502,3119.3,3118.8,2.00079]
[1641682199193,0.96803502,3119.3,3118.9,0.640787]
[1641682199394,0.96803502,3119.3,3118.8,2.00079]
[1641682199594,1.60334008,3119.1,3118.8,2.00079]
[1641682199995,5.129931,3119.0,3118.8,2.00079]
[1641682200195,5.807531,3119.0,3118.8,2.00079]
[1641682200396,1.5,3118.9,3117.8,2.88620025]
[1641682200695,1.5,3118.6,3117.8,1.29350218]
[1641682200896,1.60379522,3118.2,3117.8,0.92020218]
[1641682201100,2.31399522,3118.2,3117.8,0.92020218]
[1641682201496,3.46853424,3118.2,3117.5,0.69810025]
[1641682201695,2.00479,3117.7,3117.5,0.69810025]
[1641682202304,2.00479,3117.7,3117.3,0.640787]
[1641682202498,2.00479,3117.7,3116.9,2.00479]
[1641682202897,2.00479,3117.7,3117.0,0.66197]
[1641682203299,2.00479,3117.7,3116.9,2.00479]
[1641682203700,0.83912407,3117.6,3116.9,2.00479]
[1641682203898,6.00479,3117.7,3116.5,1.5]
[1641682203899,1.60420173,3117.4,3116.5,1.5]
[1641682204098,2.47410173,3117.4,3116.2,34.5215]
[1641682204298,2.47410173,3117.4,3117.0,1.5]
[1641682204499,2.47410173,3117.4,3115.8,70.5722]
[1641682204700,2.47410173,3117.4,3115.7,5.05617018]
[1641682204701,2.47410173,3117.4,3115.7,3.55617018]
[1641682204900,2.47410173,3117.4,3116.7,1.5]
[1641682205300,2.47410173,3117.4,3117.0,1.5]
[1641682205500,0.11024588,3117.7,3117.0,1.5]
[1641682205700,2.00479,3117.1,3117.0,1.5]
[1641682205900,2.84129,3117.1,3116.7,1.5]
[1641682206100,1.26108309,3117.0,3116.8,0.66197]
[1641682206802,1.26108309,3117.0,3116.9,1.5]
[1641682207300,1.26108309,3117.0,3116.8,2.16197]
[1641682207702,35.25193969,3118.0,3116.9,2.00479]
[1641682207901,35.25193969,3118.0,3117.8,1.5]
[1641682208101,35.25193969,3118.0,3117.1,1.5]
[1641682208503,2.00479,3118.1,3117.1,1.5]
[1641682208702,2.00479,3118.1,3116.9,2.00479]
[1641682208906,2.00479,3118.1,3117.1,1.5]
[1641682209102,2.00479,3118.1,3116.7,1.5]
[1641682209304,5.132317,3118.0,3116.7,1.5]
[1641682209503,5.132317,3118.0,3116.5,34.0746]
[1641682209710,2.00479,3117.5,3116.8,2.00479]
[1641682209905,3.15956205,3117.5,3116.9,1.302757]
[1641682210105,1.32985492,3117.4,3116.9,1.302757]
[1641682210505,2.48468618,3117.4,3116.9,1.302757]
[1641682211005,2.48468618,3117.4,3117.2,1.5]
[1641682211205,2.48468618,3117.4,3117.0,0.66197]
[1641682211407,2.48468618,3117.4,3116.7,1.5]
[1641682211606,2.48468618,3117.4,3116.8,2.00479]
[1641682212006,2.73198176,3117.5,3116.8,2.645577]
[1641682212608,1.0697237,3117.4,3117.1,1.5]
[1641682212808,1.0697237,3117.4,3116.8,2.645577]
[1641682213207,1.0697237,3117.4,3116.8,3.307547]
[1641682213408,1.0697237,3117.4,3116.8,2.00479]
[1641682213608,1.61740589,3117.5,3116.8,2.00479]
[1641682214011,1.60480929,3116.9,3115.1,0.08019]
[1641682214208,1.60480929,3116.9,3114.8,65.7375]
[1641682214209,0.672,3116.7,3115.3,1.5]
[1641682214409,40.076588,3116.8,3115.0,1.5]
[1641682214610,5.134788,3116.6,3115.1,1.5]
[1641682215010,4.0,3116.1,3114.7,1.32370875]
[1641682215210,1.60512871,3115.9,3114.7,1.32370875]
[1641682215613,1.60533227,3115.5,3114.7,1.32370875]
[1641682215813,2.00479,3114.9,3114.7,0.85530875]
[1641682216010,2.00479,3114.9,3114.7,0.77130875]
[1641682216211,2.00479,3114.9,3114.5,1.5884505]
[1641682216410,2.00479,3114.9,3114.2,2.00479]
[1641682216613,2.00479,3114.9,3113.8,2.00479]
[1641682217012,6.63720208,3114.8,3114.5,1.5]
[1641682217212,6.63720208,3114.8,3114.7,1.5]
[1641682217413,1.50002408,3114.8,3114.7,1.5]
[1641682217611,5.16609464,3115.2,3114.7,4.16676]
[1641682217812,3.16130464,3115.2,3114.7,4.16676]
[1641682218011,2.00479,3115.8,3115.1,1.5]
[1641682218212,1.60507976,3116.0,3115.2,0.66197]
[1641682218412,4.0,3116.1,3115.0,1.5]
[1641682218614,34.3439,3116.2,3115.0,1.5]
[1641682218814,1.60629668,3115.9,3115.0,1.5]
[1641682219014,5.135529,3116.0,3115.0,1.5]
[1641682219217,5.135694,3115.8,3115.0,1.5]
[1641682219416,5.60517508,3115.8,3114.6,1.5]
[1641682219615,2.00479,3114.9,3114.0,38.91947508]
[1641682219814,2.00479,3114.9,3114.0,37.3143]
[1641682220015,2.00479,3114.9,3114.0,1.5]
[1641682221020,2.00479,3115.2,3114.0,1.5]
[1641682221216,2.00479,3115.2,3115.1,1.5]
[1641682221420,4.0,3115.2,3113.8,4.00958]
[1641682221617,1.6055926,3115.0,3114.4,1.5]
[1641682221819,1.6055926,3115.3,3114.6,2.00479]
[1641682221820,1.302757,3114.9,3114.6,2.00479]
[1641682222018,2.84543303,3115.4,3114.6,2.00479]
[1641682222417,2.84543303,3115.4,3114.7,0.66197]
[1641682222618,2.84543303,3115.4,3115.3,1.5]
[1641682223119,2.84543303,3115.4,3115.3,0.66197]
[1641682223322,2.84543303,3115.4,3115.2,0.640787]
[1641682223519,2.84543303,3115.4,3115.0,0.66197]
[1641682223719,2.84543303,3115.4,3115.0,2.16197]
[1641682223918,3.07650548,3115.3,3113.7,9.12703723]
[1641682224119,3.07650548,3115.3,3113.7,9.04679723]
[1641682225118,3.07650548,3115.3,3113.7,10.65199293]
[1641682225318,1.57650548,3115.3,3113.7,10.65199293]
[1641682225620,2.00479,3115.0,3114.3,2.00479]
[1641682225820,1.57650548,3115.3,3114.4,1.302757]
[1641682226619,2.44081293,3116.2,3114.4,1.302757]
[1641682226820,2.44081293,3116.2,3114.5,15.37477581]
[1641682227022,1.60477581,3116.3,3114.5,1.60477581]
[1641682227220,37.83434549,3116.7,3114.4,0.721027]
[1641682227621,2.91514549,3116.7,3114.5,13.77]
[1641682227821,1.60467023,3116.5,3115.6,4.00958]
[1641682228024,1.30744406,3116.4,3115.6,4.67155]
[1641682229025,0.66197,3116.3,3115.6,4.67155]
[1641682229225,1.60484535,3116.2,3115.6,4.67155]
[1641682229425,0.72666951,3116.4,3115.6,4.67155]
[1641682229825,2.73145951,3116.4,3115.6,4.67155]
[1641682231026,0.66197,3116.3,3115.6,4.67155]
[1641682231227,1.53127646,3116.2,3115.6,4.67155]
[1641682232229,1.53127646,3116.2,3115.6,2.00479]
[1641682232428,1.53127646,3116.2,3115.7,0.66197]
[1641682232628,1.03307364,3116.0,3115.7,0.66197]
[1641682232829,1.22905927,3115.9,3115.6,2.00479]
[1641682233028,1.22905927,3115.9,3114.5,1.60493807]
[1641682233729,1.22905927,3115.9,3114.9,2.00479]
[1641682233730,1.5,3115.6,3114.9,2.00479]
[1641682233930,1.22905927,3115.9,3115.0,0.640787]
[1641682233931,1.15563662,3115.2,3115.0,0.640787]
[1641682234130,1.15563662,3115.2,3114.9,0.66197]
[1641682235731,1.15563662,3115.2,3115.0,2.00479]
[1641682235932,0.98263259,3115.1,3114.9,0.66197]
[1641682236732,0.04633749,3115.2,3114.9,0.66197]
[1641682237132,1.60523177,3115.7,3114.9,0.66197]
[1641682237337,0.66197,3115.6,3114.9,0.66197]
[1641682237734,3.04541895,3115.5,3114.9,0.66197]
[1641682238335,3.70738895,3115.5,3114.9,0.66197]
[1641682239235,3.04541895,3115.5,3114.9,0.66197]
[1641682239643,2.47949,3116.0,3114.9,0.66197]
[1641682239840,2.47949,3116.0,3115.2,2.00479]
[1641682240040,0.66197,3115.9,3115.2,2.00479]
[1641682240237,0.66197,3115.9,3115.3,0.66197]
[1641682241038,0.66197,3115.9,3115.2,2.00479]
[1641682241239,1.35444313,3115.8,3115.2,2.00479]
[1641682241540,1.35444313,3115.8,3115.3,0.66197]
[1641682242442,0.66197,3115.7,3114.2,0.08024]
[1641682242639,1.36878436,3115.3,3114.0,1.6051957]
[1641682243039,5.137013,3115.2,3113.7,46.382]
[1641682243440,1.57258789,3114.8,3113.7,13.77]
[1641682243640,1.57258789,3114.8,3113.5,1.6054199]
[1641682243840,5.137673,3114.7,3114.1,2.00479]
[1641682244041,5.137673,3114.7,3114.2,0.640787]
[1641682244042,0.66197,3114.6,3114.2,0.640787]
[1641682244241,1.87818643,3114.5,3114.2,0.640787]
[1641682244443,1.53195461,3114.4,3114.1,2.00479]
[1641682244641,7.02328705,3114.5,3114.1,2.00479]
[1641682244841,5.137673,3114.3,3114.1,2.00479]
[1641682245048,5.799643,3114.3,3114.1,2.00479]
[1641682245242,0.66197,3114.3,3114.1,2.00479]
[1641682245846,2.05947706,3114.7,3114.5,2.42526597]
[1641682247047,1.60570346,3114.8,3114.5,2.42526597]
[1641682247446,1.5,3115.9,3114.5,2.42526597]
[1641682247648,1.5511532,3115.3,3114.5,2.42526597]
[1641682247846,2.00479,3114.9,3114.6,0.66197]
[1641682248046,1.60553589,3115.1,3114.5,2.42526597]
[1641682248646,1.48734987,3115.0,3114.5,2.42526597]
[1641682249647,1.48734987,3115.0,3114.6,0.66197]
[1641682249852,1.48734987,3115.0,3114.6,2.66676]
[1641682251850,1.48734987,3115.0,3114.7,2.00479]
[1641682252050,1.48734987,3115.0,3114.8,0.66197]
[1641682252251,1.48734987,3115.0,3114.9,0.640787]
[1641682252452,2.00479,3115.6,3115.0,0.66197]
[1641682253153,2.00479,3116.1,3115.0,0.66197]
[1641682253956,2.00479,3116.1,3115.6,2.00479]
[1641682254156,2.00479,3116.1,3115.7,0.66197]
[1641682254356,2.00479,3116.1,3115.7,1.302757]
[1641682254556,1.22984706,3116.0,3115.7,1.302757]
[1641682255657,1.22984706,3116.0,3115.7,0.640787]
[1641682255857,1.22984706,3116.0,3115.6,2.00479]
[1641682257963,1.22984706,3116.0,3115.6,2.66676]
[1641682258361,1.22984706,3116.0,3115.7,0.640787]
[1641682258761,1.22984706,3116.0,3115.6,2.00479]
[1641682259963,3.07692545,3116.0,3115.6,2.00479]
[1641682260364,5.135117,3115.9,3115.6,2.00479]
[1641682260567,3.07692545,3116.0,3115.6,2.00479]
[1641682261566,3.07692545,3116.0,3115.6,2.66676]
[1641682262166,5.135117,3115.9,3115.6,2.66676]
[1641682262367,5.135117,3115.9,3115.6,2.00479]
[1641682263869,6.29051841,3115.9,3115.6,2.00479]
[1641682264069,6.29051841,3115.9,3115.6,2.66676]
[1641682265270,6.29051841,3115.9,3115.6,2.00479]
[1641682265871,6.29051841,3115.9,3115.5,1.302757]
[1641682266071,1.15540141,3115.9,3115.5,1.302757]
[1641682266871,1.15540141,3115.9,3115.5,0.66197]
[1641682267272,5.135282,3115.8,3115.5,0.66197]
[1641682269774,5.135282,3115.8,3115.2,2.00479]
[1641682269974,1.15540141,3115.9,3115.2,2.66676]
[1641682270175,1.15540141,3115.9,3115.3,0.640787]
[1641682270575,0.96293843,3115.5,3115.4,0.66197]
[1641682271875,0.96293843,3115.5,3115.3,0.640787]
[1641682272076,0.96293843,3115.5,3115.4,0.66197]
[1641682273578,0.96293843,3115.5,3115.4,0.51224866]
[1641682273978,0.96293843,3115.5,3115.4,1.15303566]
[1641682274677,0.96293843,3115.5,3115.3,0.66197]
[1641682274678,0.96293843,3115.5,3115.3,1.17421866]
[1641682275077,3.02482941,3115.4,3115.1,1.32333967]
[1641682275283,3.02482941,3115.4,3115.1,1.98530967]
[1641682276078,3.02482941,3115.4,3115.2,0.640787]
[1641682276278,3.02482941,3115.4,3115.3,0.66197]
[1641682276479,2.00479,3115.7,3115.3,0.66197]
[1641682277479,5.40423821,3115.7,3115.3,0.66197]
[1641682277978,3.39944821,3115.7,3115.3,2.66676]